lending/lending_fUSD_20240621
["ID","MTS","AMOUNT","RATE_DAILY","PERIOD"]
[330081167,1718989709511,-500.0,0.0002218,4]
[330081168,1718989709556,-748.62,0.0002218,4]
[330081169,1718989709599,-500.0,0.0002218,4]
[330081170,1718989709650,-2336.91,0.0002218,4]
[330081171,1718989709692,-500.0,0.0002218,4]
[330081172,1718989709737,-1361.85,0.0002218,4]
[330081173,1718989709782,-500.0,0.0002218,4]
[330081174,1718989709823,-1018.85,0.0002218,4]
[330081175,1718989709865,-500.0,0.0002218,4]
[330081176,1718989709908,-16289.33,0.0002218,4]
[330081177,1718989709949,-500.0,0.0002218,4]
[330081178,1718989709991,-500.0,0.0002218,4]
[330081179,1718989710048,-500.0,0.0002218,4]
[330081180,1718989710096,-650.0,0.0002218,4]
[330081181,1718989710138,-2349.59,0.0002218,4]
[330081182,1718989710178,-500.0,0.0002218,4]
[330081183,1718989710222,-500.0,0.0002218,4]
[330081184,1718989710264,-500.0,0.0002218,4]
[330081185,1718989710310,-500.0,0.0002218,4]
[330081186,1718989710352,-979.16,0.0002218,4]
[330081187,1718989710392,-772.03,0.0002218,4]
[330081188,1718989710433,-1085.42,0.0002218,4]
[330081189,1718989710474,-500.0,0.0002218,4]
[330081190,1718989710515,-500.0,0.0002218,4]
[330081191,1718989710561,-500.0,0.0002218,4]
[330081192,1718989710598,-1856.06,0.0002218,4]
[330081193,1718989710637,-581.94,0.0002218,4]
[330081194,1718989710677,-500.0,0.0002218,4]
[330081195,1718989710714,-1071.94,0.0002218,4]
[330081196,1718989710752,-236.68450926,0.0002218,4]
[330081197,1718989710792,-500.0,0.0002218,4]
[330081198,1718989710832,-501.41525893,0.0002218,4]
[330081199,1718989710874,-500.0,0.0002218,4]
[330081200,1718989710918,-500.0,0.0002218,4]
[330081201,1718989710961,-676.76,0.0002218,4]
[330081202,1718989711004,-500.0,0.0002218,4]
[330081203,1718989711047,-1530.22,0.0002218,4]
[330081204,1718989711090,-63676.8131289,0.0002218,2]
[330081205,1718989711134,-95515.2196933,0.00022181,2]
[330081206,1718989711182,-151.0,0.00022188,3]
[330081207,1718989711226,-500.0,0.00022189,4]
[330081208,1718989711267,-500.0,0.0002219,4]
[330081209,1718989711309,-500.0,0.0002219,4]
[330081210,1718989711352,-1390.32,0.0002219,4]
[330081211,1718989711394,-1277.88,0.0002219,4]
[330081212,1718989711435,-2463.8,0.0002219,4]
[330081213,1718989711478,-2085.31,0.0002219,4]
[330081214,1718989711518,-2038.36,0.0002219,4]
[330081215,1718989711561,-1048.67,0.0002219,4]
[330081216,1718989711607,-500.0,0.0002219,4]
[330081217,1718989711649,-500.0,0.0002219,4]
[330081218,1718989711693,-500.0,0.0002219,4]
[330081219,1718989711735,-500.0,0.0002219,4]
[330081220,1718989711780,-3374.01,0.0002219,4]
[330081221,1718989711822,-500.0,0.0002219,4]
[330081222,1718989711863,-1421.52,0.0002219,4]
[330081223,1718989711905,-961.12,0.0002219,4]
[330081224,1718989711946,-2740.21,0.0002219,4]
[330081225,1718989711986,-875.07,0.0002219,4]
[330081226,1718989712031,-2481.5,0.0002219,4]
[330081227,1718989712075,-2928.05,0.0002219,4]
[330081228,1718989712115,-1339.16,0.0002219,4]
[330081229,1718989712406,-500.0,0.0002219,4]
[330081230,1718989712448,-727.93,0.0002219,4]
[330081231,1718989712486,-3366.12,0.0002219,4]
[330081232,1718989712527,-1432.85,0.0002219,4]
[330081233,1718989712566,-5070.63,0.0002219,4]
[330081234,1718989712604,-1981.72,0.0002219,4]
[330081235,1718989712646,-30707.08,0.0002219,4]
[330081236,1718989712684,-500.0,0.0002219,4]
[330081237,1718989712723,-1176.2,0.0002219,4]
[330081238,1718989712764,-2221.96,0.0002219,4]
[330081239,1718989712807,-500.0,0.0002219,4]
[330081240,1718989712843,-155.0,0.0002219,2]
[330081241,1718989712882,-4441.75,0.0002219,4]
[330081242,1718989712922,-500.0,0.0002219,4]
[330081243,1718989712959,-1836.11,0.0002219,4]
[330081244,1718989713000,-29672.88,0.0002219,4]
[330081245,1718989713041,-1666.62,0.0002219,4]
[330081246,1718989713083,-1643.6,0.0002219,4]
[330081247,1718989713122,-155.0,0.0002219,2]
[330081248,1718989713160,-1088.29,0.0002219,4]
[330081249,1718989713198,-2027.71,0.0002219,4]
[330081250,1718989713237,-500.0,0.0002219,4]
[330081251,1718989713276,-1964.32,0.0002219,4]
[330081252,1718989713314,-500.0,0.00022191,4]
[330081253,1718989713352,-365.79295107,0.00022191,4]
[330081254,1718989713390,-2013.06,0.00022191,4]
[330081255,1718989713427,-500.0,0.00022191,4]
[330081256,1718989713463,-658.57,0.00022191,4]
[330081257,1718989713500,-500.0,0.00022191,4]
[330081258,1718989713537,-500.0,0.00022191,4]
[330081259,1718989713580,-1415.8,0.00022191,4]
[330081260,1718989713622,-500.0,0.00022191,4]
[330081261,1718989713666,-2301.5,0.00022191,4]
[330081262,1718989713711,-1930.31,0.00022191,4]
[330081263,1718989713756,-500.0,0.00022191,4]
[330081264,1718989713799,-1505.14,0.00022191,4]
[330081265,1718989713839,-859.86,0.00022191,4]
[330081266,1718989713882,-500.0,0.00022191,4]
[330081267,1718989713926,-2724.29,0.00022191,4]
[330081268,1718989713969,-500.0,0.00022191,4]
[330081269,1718989714010,-3259.1,0.00022191,4]
[330081270,1718989714054,-642.24,0.00022191,4]
[330081271,1718989714098,-1397.1,0.00022191,4]
[330081272,1718989714140,-532.64255217,0.00022191,4]
[330081273,1718989714180,-602.59,0.00022191,4]
[330081274,1718989714221,-16821.22,0.00022191,4]
[330081275,1718989714262,-762.85,0.00022191,4]
[330081276,1718989714304,-5682.94,0.00022191,4]
[330081277,1718989714344,-512.95786247,0.00022191,4]
[330081278,1718989714386,-570.91,0.00022191,4]
[330081279,1718989714428,-500.0,0.00022191,4]
[330081280,1718989714469,-3798.27,0.00022191,4]
[330081281,1718989714509,-669.19,0.00022191,4]
[330081282,1718989714552,-500.0,0.00022191,4]
[330081283,1718989714592,-1901.91,0.00022191,4]
[330081284,1718989714631,-1273.57,0.00022191,4]
[330081285,1718989714672,-1016.47,0.00022191,4]
[330081286,1718989714715,-500.0,0.00022191,4]
[330081287,1718989714759,-500.0,0.00022191,4]
[330081288,1718989714801,-6335.68,0.00022191,4]
[330081289,1718989714844,-500.0,0.00022191,4]
[330081290,1718989714887,-5403.44,0.00022191,4]
[330081291,1718989714931,-500.0,0.00022191,4]
[330081292,1718989714971,-500.0,0.00022191,4]
[330081293,1718989715014,-500.0,0.00022191,4]
[330081294,1718989715057,-6856.78,0.00022191,4]
[330081295,1718989715098,-500.0,0.00022191,4]
[330081296,1718989715138,-500.0,0.00022191,4]
[330081297,1718989715179,-963.28,0.00022191,4]
[330081298,1718989715219,-500.0,0.00022191,4]
[330081299,1718989715262,-500.0,0.00022191,4]
[330081300,1718989715305,-532.82,0.00022191,4]
[330081301,1718989715346,-2148.29,0.00022191,4]
[330081302,1718989715389,-2896.96,0.00022191,4]
[330081303,1718989715432,-904.13,0.00022191,4]
[330081304,1718989715474,-500.0,0.00022191,4]
[330081305,1718989715514,-500.0,0.00022191,4]
[330081306,1718989715556,-1923.19,0.00022191,4]
[330081307,1718989715598,-1655.82,0.00022191,4]
[330081308,1718989715645,-500.0,0.00022191,4]
[330081309,1718989715688,-500.0,0.00022191,4]
[330081310,1718989715729,-590.93,0.00022191,4]
[330081311,1718989715771,-511.56,0.00022191,4]
[330081312,1718989715817,-500.0,0.00022191,4]
[330081313,1718989715859,-1612.01,0.00022191,4]
[330081314,1718989715901,-500.0,0.00022191,4]
[330081315,1718989715944,-9657.0,0.00022191,4]
[330081316,1718989715988,-596.65,0.00022191,4]
[330081317,1718989716031,-500.0,0.00022191,4]
[330081318,1718989716074,-500.0,0.00022191,4]
[330081319,1718989716114,-2137.42,0.00022191,4]
[330081320,1718989716155,-500.0,0.00022191,4]
[330081321,1718989716197,-573.05,0.00022191,4]
[330081322,1718989716237,-500.0,0.00022191,4]
[330081323,1718989716578,-3053.94,0.00022191,4]
[330081324,1718989716620,-500.0,0.00022191,4]
[330081325,1718989716664,-657.01,0.00022191,4]
[330081326,1718989716708,-500.0,0.00022191,4]
[330081327,1718989716752,-500.0,0.00022191,4]
[330081328,1718989716792,-500.0,0.00022191,4]
[330081329,1718989716833,-639.37,0.00022191,4]
[330081330,1718989716875,-2666.89,0.00022191,4]
[330081331,1718989716919,-2243.82,0.00022191,4]
[330081332,1718989716961,-500.0,0.00022191,4]
[330081333,1718989717004,-682.46,0.00022191,4]
[330081334,1718989717050,-1600.73,0.00022191,4]
[330081335,1718989717099,-500.0,0.00022191,4]
[330081336,1718989717142,-1512.5,0.00022191,4]
[330081337,1718989717184,-4050.67,0.00022191,4]
[330081338,1718989717226,-500.0,0.00022191,4]
[330081339,1718989717267,-696.06,0.00022191,4]
[330081340,1718989717312,-1542.7,0.00022191,4]
[330081341,1718989717352,-500.0,0.00022191,4]
[330081342,1718989717394,-1105.98,0.00022191,4]
[330081343,1718989717435,-1549.93,0.00022191,4]
[330081344,1718989717476,-833.57,0.00022191,4]
[330081345,1718989717516,-2659.75,0.00022191,4]
[330081346,1718989717559,-500.0,0.00022191,4]
[330081347,1718989717598,-500.0,0.00022191,4]
[330081348,1718989717641,-1158.3,0.00022191,4]
[330081349,1718989717685,-500.0,0.00022191,4]
[330081350,1718989717729,-533.64,0.00022191,4]
[330081351,1718989717770,-833.78,0.00022191,4]
[330081352,1718989717811,-500.0,0.00022191,4]
[330081353,1718989717852,-685.86,0.00022191,4]
[330081354,1718989717892,-500.0,0.00022191,4]
[330081355,1718989717933,-500.0,0.00022191,4]
[330081356,1718989717974,-500.0,0.00022191,4]
[330081357,1718989718016,-1289.2,0.00022191,4]
[330081358,1718989718065,-500.0,0.00022191,4]
[330081359,1718989718111,-1090.97,0.00022191,4]
[330081360,1718989718156,-599.47,0.00022191,4]
[330081361,1718989718198,-500.0,0.00022191,4]
[330081362,1718989718241,-591.52,0.00022191,4]
[330081363,1718989718283,-2819.08,0.00022191,4]
[330081364,1718989718322,-500.0,0.00022191,4]
[330081365,1718989718377,-7009.44,0.00022191,4]
[330081366,1718989718420,-1505.93,0.00022191,4]
[330081367,1718989718460,-824.93,0.00022191,4]
[330081368,1718989718499,-500.0,0.00022191,4]
[330081369,1718989718539,-500.0,0.00022191,4]
[330081370,1718989718581,-500.0,0.00022191,4]
[330081371,1718989718632,-3331.02,0.00022191,4]
[330081372,1718989718687,-1405.37,0.00022191,4]
[330081373,1718989718740,-5922.66,0.00022191,4]
[330081374,1718989718783,-500.0,0.00022191,4]
[330081375,1718989718823,-500.0,0.00022191,4]
[330081376,1718989718863,-905.75,0.00022191,4]
[330081377,1718989718904,-6608.91,0.00022191,4]
[330081378,1718989718943,-500.0,0.00022191,4]
[330081379,1718989718981,-580.05,0.00022191,4]
[330081380,1718989719023,-500.0,0.00022191,4]
[330081381,1718989719086,-500.0,0.00022191,4]
[330081382,1718989719132,-540.71,0.00022191,4]
[330081383,1718989719175,-500.0,0.00022191,4]
[330081384,1718989719222,-838.13,0.00022191,4]
[330081385,1718989719267,-500.0,0.00022191,4]
[330081386,1718989719318,-535.25,0.00022191,4]
[330081387,1718989719365,-823.35,0.00022191,4]
[330081388,1718989719411,-887.04,0.00022191,4]
[330081389,1718989719458,-1378.35,0.00022191,4]
[330081390,1718989719504,-500.0,0.00022191,4]
[330081391,1718989719549,-500.0,0.00022191,4]
[330081392,1718989719596,-1812.66,0.00022191,4]
[330081393,1718989719643,-1256.45,0.00022191,4]
[330081394,1718989719690,-647.36,0.00022191,4]
[330081395,1718989719734,-772.11,0.00022191,4]
[330081396,1718989719779,-500.0,0.00022191,4]
[330081397,1718989719829,-169.42797267,0.00022291,2]
[330081398,1718989719876,-528.91,0.00022298,2]
[330081399,1718989719923,-169.75322858,0.00022354,2]
[330081400,1718989719972,-166.66666668,0.0002237,2]
[330081401,1718989720109,-111434.422976,0.00022444,2]
[330081402,1718989720160,-1989.12,0.00022453,4]
[330081403,1718989720207,-500.0,0.00022454,4]
[330081404,1718989720252,-500.0,0.00022454,4]
[330081405,1718989720303,-500.0,0.00022454,4]
[330081406,1718989720349,-2333.21,0.00022454,4]
[330081407,1718989720395,-500.0,0.00022454,4]
[330081408,1718989720439,-500.0,0.00022454,4]
[330081409,1718989720486,-500.0,0.00022454,4]
[330081410,1718989720533,-500.0,0.00022454,4]
[330081411,1718989720578,-1974.58,0.00022454,4]
[330081412,1718989720623,-1560.47,0.00022454,4]
[330081413,1718989720668,-1456.87,0.00022454,4]
[330081414,1718989720713,-500.0,0.00022454,4]
[330081415,1718989720758,-3025.07,0.00022454,4]
[330081416,1718989720801,-500.0,0.00022454,4]
[330081417,1718989720847,-6364.13,0.00022454,4]
[330081418,1718989720892,-1350.6,0.00022454,4]
[330081419,1718989720936,-500.0,0.00022454,4]
[330081420,1718989720983,-766.53,0.00022454,4]
[330081421,1718989721030,-319.93694857,0.00022454,4]
[330081422,1718989721083,-1844.09,0.00022454,4]
[330081423,1718989721132,-209.58,0.00022454,4]
[330081424,1718989721181,-500.0,0.00022454,4]
[330081425,1718989721226,-1457.49,0.00022454,4]
[330081426,1718989721272,-1549.35,0.00022454,4]
[330081427,1718989721319,-500.0,0.00022454,4]
[330081428,1718989721363,-1276.6,0.00022454,4]
[330081429,1718989721409,-607.75,0.00022454,4]
[330081430,1718989721459,-8891.87,0.00022454,4]
[330081431,1718989721507,-500.0,0.00022454,4]
[330081432,1718989721555,-661.51,0.00022454,4]
[330081433,1718989721603,-202.53956549,0.00022454,4]
[330081434,1718989721650,-616.1,0.00022454,4]
[330081435,1718989721698,-500.0,0.00022454,4]
[330081436,1718989721742,-516.53833783,0.00022454,4]
[330081437,1718989721787,-500.0,0.00022454,4]
[330081438,1718989721832,-759.07,0.00022454,4]
[330081439,1718989721876,-500.0,0.00022454,4]
[330081440,1718989721921,-500.0,0.00022454,4]
[330081441,1718989721964,-1007.76,0.00022454,4]
[330081442,1718989722008,-558.75,0.00022454,4]
[330081443,1718989722059,-3884.65,0.00022454,4]
[330081444,1718989722106,-500.0,0.00022454,4]
[330081445,1718989722151,-520.63,0.00022454,4]
[330081446,1718989722197,-500.0,0.00022454,4]
[330081447,1718989722243,-500.0,0.00022454,4]
[330081448,1718989722291,-500.0,0.00022454,4]
[330081449,1718989722335,-750.4,0.00022454,4]
[330081450,1718989722380,-500.0,0.00022454,4]
[330081451,1718989722423,-500.0,0.00022454,4]
[330081452,1718989722468,-2778.62,0.00022454,4]
[330081453,1718989722513,-500.0,0.00022454,4]
[330081454,1718989722556,-500.0,0.00022454,4]
[330081455,1718989722599,-674.53,0.00022454,4]
[330081456,1718989722642,-1723.58,0.00022454,4]
[330081457,1718989722686,-919.98,0.00022454,4]
[330081458,1718989722729,-500.0,0.00022454,4]
[330081459,1718989722773,-500.0,0.00022454,4]
[330081460,1718989722822,-500.0,0.00022454,4]
[330081461,1718989722866,-596.44,0.00022454,4]
[330081462,1718989722910,-500.0,0.00022454,4]
[330081463,1718989722953,-572.44,0.00022454,4]
[330081464,1718989722998,-966.63,0.00022454,4]
[330081465,1718989723043,-500.0,0.00022454,4]
[330081466,1718989723090,-500.0,0.00022454,4]
[330081467,1718989723137,-500.0,0.00022454,4]
[330081468,1718989723184,-574.64,0.00022454,4]
[330081469,1718989723230,-500.0,0.00022454,4]
[330081470,1718989723280,-1268.76,0.00022454,4]
[330081471,1718989723328,-500.0,0.00022454,4]
[330081472,1718989723372,-551.74,0.00022454,4]
[330081473,1718989723416,-367.13023439,0.00022454,4]
[330081474,1718989723462,-500.0,0.00022454,4]
[330081475,1718989723506,-419.92111112,0.00022454,4]
[330081476,1718989723550,-500.0,0.00022454,4]
[330081477,1718989723594,-735.24,0.00022454,4]
[330081478,1718989723641,-4197.1,0.00022454,4]
[330081479,1718989723699,-853.88,0.00022454,4]
[330081480,1718989723749,-769.31,0.00022454,4]
[330081481,1718989723797,-529.44780419,0.00022454,4]
[330081482,1718989723845,-500.0,0.00022454,4]
[330081483,1718989723892,-4587.09,0.00022454,4]
[330081484,1718989723937,-584.18,0.00022454,4]
[330081485,1718989723982,-754.91,0.00022454,4]
[330081486,1718989724028,-500.0,0.00022454,4]
[330081487,1718989724084,-231.61823948,0.00022454,4]
[330081488,1718989724130,-3819.28,0.00022454,4]
[330081489,1718989724176,-500.0,0.00022454,4]
[330081490,1718989724222,-500.0,0.00022454,4]
[330081491,1718989724266,-667.94,0.00022454,4]
[330081492,1718989724314,-920.79,0.00022454,4]
[330081493,1718989724358,-2478.71,0.00022454,4]
[330081494,1718989724401,-843.52,0.00022454,4]
[330081495,1718989724444,-1915.42,0.00022454,4]
[330081496,1718989724492,-1326.48,0.00022454,4]
[330081497,1718989724542,-878.77,0.00022454,4]
[330081498,1718989724589,-500.0,0.00022454,4]
[330081499,1718989724634,-1207.42,0.00022454,4]
[330081500,1718989724678,-500.0,0.00022454,4]
[330081501,1718989724723,-2453.82,0.00022454,4]
[330081502,1718989724769,-1304.29,0.00022454,4]
[330081503,1718989724816,-944.02,0.00022454,4]
[330081504,1718989724861,-500.0,0.00022454,4]
[330081505,1718989724905,-500.0,0.00022454,4]
[330081506,1718989724948,-729.79,0.00022454,4]
[330081507,1718989724992,-1256.24,0.00022454,4]
[330081508,1718989725041,-500.0,0.00022454,4]
[330081509,1718989725088,-500.0,0.00022454,4]
[330081510,1718989725131,-656.57,0.00022454,4]
[330081511,1718989725178,-1422.04,0.00022454,4]
[330081512,1718989725222,-4413.37,0.00022454,4]
[330081513,1718989725266,-1852.92,0.00022454,4]
[330081514,1718989725308,-625.57,0.00022454,4]
[330081515,1718989725352,-466.99384679,0.00022454,4]
[330081516,1718989725395,-500.0,0.00022454,4]
[330081517,1718989725440,-6846.75,0.00022454,4]
[330081518,1718989725484,-666.91,0.00022454,4]
[330081519,1718989725676,-2424.04,0.00022454,4]
[330081520,1718989725730,-765.5,0.00022454,4]
[330081521,1718989725776,-1499.6,0.00022454,4]
[330081522,1718989725823,-500.0,0.00022454,4]
[330081523,1718989725871,-13628.78,0.00022454,4]
[330081524,1718989725919,-4987.88,0.00022454,4]
[330081525,1718989725967,-500.0,0.00022454,4]
[330081526,1718989726015,-500.0,0.00022454,4]
[330081527,1718989726062,-500.0,0.00022454,4]
[330081528,1718989726109,-2211.22,0.00022454,4]
[330081529,1718989726157,-787.23,0.00022454,4]
[330081530,1718989726203,-915.87,0.00022454,4]
[330081531,1718989726249,-7061.4,0.00022454,4]
[330081532,1718989726295,-637.63,0.00022454,4]
[330081533,1718989726341,-1221.9,0.00022454,4]
[330081534,1718989726386,-500.0,0.00022454,4]
[330081535,1718989726432,-1018.75,0.00022454,4]
[330081536,1718989726478,-1716.52,0.00022454,4]
[330081537,1718989726523,-500.0,0.00022454,4]
[330081538,1718989726569,-501.59,0.00022454,4]
[330081539,1718989726613,-500.0,0.00022454,4]
[330081540,1718989726658,-500.0,0.00022454,4]
[330081541,1718989726701,-500.0,0.00022454,4]
[330081542,1718989726744,-869.8,0.00022454,4]
[330081543,1718989726789,-500.0,0.00022454,4]
[330081544,1718989726836,-4021.17,0.00022454,4]
[330081545,1718989726879,-575.33077044,0.00022454,4]
[330081546,1718989726924,-500.0,0.00022454,8]
[330081547,1718989726969,-500.0,0.00022454,4]
[330081548,1718989727012,-500.0,0.00022454,4]
[330081549,1718989727059,-500.0,0.00022454,4]
[330081550,1718989727104,-748.62,0.00022454,4]
[330081551,1718989727149,-500.0,0.00022454,4]
[330081552,1718989727195,-2336.91,0.00022454,4]
[330081553,1718989727239,-500.0,0.00022454,4]
[330081554,1718989727284,-1361.85,0.00022454,4]
[330081555,1718989727328,-500.0,0.00022454,4]
[330081556,1718989727369,-1018.85,0.00022454,4]
[330081557,1718989727410,-422.4203439,0.00022454,4]
[330081558,1718989727451,-16289.33,0.00022454,4]
[330081559,1718989727493,-303.79020338,0.00022454,4]
[330081560,1718989727536,-500.0,0.00022454,4]
[330081561,1718989727579,-500.0,0.00022454,4]
[330081562,1718989727621,-650.0,0.00022454,4]
[330081563,1718989727666,-2349.59,0.00022454,4]
[330081564,1718989727711,-500.0,0.00022454,4]
[330081565,1718989727758,-500.0,0.00022454,4]
[330081566,1718989727802,-500.0,0.00022454,4]
[330081567,1718989727844,-500.0,0.00022454,4]
[330081568,1718989727886,-979.16,0.00022454,4]
[330081569,1718989727929,-772.03,0.00022454,4]
[330081570,1718989727972,-1085.42,0.00022454,4]
[330081571,1718989728016,-500.0,0.00022454,4]
[330081572,1718989728059,-500.0,0.00022454,4]
[330081573,1718989728103,-500.0,0.00022454,4]
[330081574,1718989728147,-1856.06,0.00022454,4]
[330081575,1718989728190,-581.94,0.00022454,4]
[330081576,1718989728233,-1071.94,0.00022454,4]
[330081577,1718989728277,-500.0,0.00022454,4]
[330081578,1718989728325,-500.0,0.00022454,4]
[330081579,1718989728368,-500.0,0.00022454,4]
[330081580,1718989728412,-676.76,0.00022454,4]
[330081581,1718989728455,-173.67827699,0.00022454,4]
[330081582,1718989728500,-1530.22,0.00022454,4]
[330081583,1718989728550,-31838.4065644,0.00022454,2]
[330081584,1718989728594,-150.59,0.0002246,2]
[330081585,1718989728638,-500.0,0.00022463,4]
[330081586,1718989728681,-500.0,0.00022464,4]
[330081587,1718989728725,-500.0,0.00022464,4]
[330081588,1718989728776,-1390.32,0.00022464,4]
[330081589,1718989728822,-1277.88,0.00022464,4]
[330081590,1718989728864,-2463.8,0.00022464,4]
[330081591,1718989728909,-2085.31,0.00022464,4]
[330081592,1718989728952,-2038.36,0.00022464,4]
[330081593,1718989728997,-1048.67,0.00022464,4]
[330081594,1718989729047,-500.0,0.00022464,4]
[330081595,1718989729095,-500.0,0.00022464,4]
[330081596,1718989729143,-3374.01,0.00022464,4]
[330081597,1718989729188,-500.0,0.00022464,4]
[330081598,1718989729233,-1421.52,0.00022464,4]
[330081599,1718989729277,-961.12,0.00022464,4]
[330081600,1718989729321,-2740.21,0.00022464,4]
[330081601,1718989729365,-875.07,0.00022464,4]
[330081602,1718989729418,-2481.5,0.00022464,4]
[330081603,1718989729467,-2928.05,0.00022464,4]
[330081604,1718989729511,-1339.16,0.00022464,4]
[330081605,1718989729554,-500.0,0.00022464,4]
[330081606,1718989729597,-727.93,0.00022464,4]
[330081607,1718989729642,-3366.12,0.00022464,4]
[330081608,1718989729685,-1432.85,0.00022464,4]
[330081609,1718989729737,-5070.63,0.00022464,4]
[330081610,1718989729783,-1981.72,0.00022464,4]
[330081611,1718989729828,-30707.08,0.00022464,4]
[330081612,1718989729873,-500.0,0.00022464,4]
[330081613,1718989730222,-1176.2,0.00022464,4]
[330081614,1718989730266,-2221.96,0.00022464,4]
[330081615,1718989730309,-500.0,0.00022464,4]
[330081616,1718989730353,-4441.75,0.00022464,4]
[330081617,1718989730396,-500.0,0.00022464,4]
[330081618,1718989730438,-1836.11,0.00022464,4]
[330081619,1718989730481,-29672.88,0.00022464,4]
[330081620,1718989730524,-1666.62,0.00022464,4]
[330081621,1718989730570,-1643.6,0.00022464,4]
[330081622,1718989730612,-1088.29,0.00022464,4]
[330081623,1718989730654,-2027.71,0.00022464,4]
[330081624,1718989730698,-500.0,0.00022464,4]
[330081625,1718989730741,-1964.32,0.00022464,4]
[330081626,1718989730782,-500.0,0.00022465,4]
[330081627,1718989730826,-2013.06,0.00022465,4]
[330081628,1718989730876,-204.17010105,0.00022465,4]
[330081629,1718989730920,-658.57,0.00022465,4]
[330081630,1718989730962,-500.0,0.00022465,4]
[330081631,1718989731003,-500.0,0.00022465,4]
[330081632,1718989731049,-1415.8,0.00022465,4]
[330081633,1718989731092,-500.0,0.00022465,4]
[330081634,1718989731135,-2301.5,0.00022465,4]
[330081635,1718989731177,-1930.31,0.00022465,4]
[330081636,1718989731219,-500.0,0.00022465,4]
[330081637,1718989731261,-1505.14,0.00022465,4]
[330081638,1718989731304,-500.0,0.00022465,4]
[330081639,1718989731347,-859.86,0.00022465,4]
[330081640,1718989731391,-2724.29,0.00022465,4]
[330081641,1718989731437,-500.0,0.00022465,4]
[330081643,1718989731482,-3259.1,0.00022465,4]
[330081645,1718989731526,-642.24,0.00022465,4]
[330081646,1718989731572,-1397.1,0.00022465,4]
[330081647,1718989731613,-602.59,0.00022465,4]
[330081648,1718989731656,-16821.22,0.00022465,4]
[330081649,1718989731701,-762.85,0.00022465,4]
[330081650,1718989731746,-5682.94,0.00022465,4]
[330081651,1718989731792,-570.91,0.00022465,4]
[330081652,1718989731836,-500.0,0.00022465,4]
[330081653,1718989731881,-3798.27,0.00022465,4]
[330081654,1718989731925,-669.19,0.00022465,4]
[330081655,1718989731972,-500.0,0.00022465,4]
[330081656,1718989732016,-1901.91,0.00022465,4]
[330081657,1718989732063,-1273.57,0.00022465,4]
[330081658,1718989732108,-1016.47,0.00022465,4]
[330081659,1718989732154,-500.0,0.00022465,4]
[330081660,1718989732199,-500.0,0.00022465,4]
[330081661,1718989732242,-6335.68,0.00022465,4]
[330081662,1718989732284,-500.0,0.00022465,4]
[330081663,1718989732331,-5403.44,0.00022465,4]
[330081664,1718989732374,-500.0,0.00022465,4]
[330081665,1718989732418,-500.0,0.00022465,4]
[330081666,1718989732462,-500.0,0.00022465,4]
[330081667,1718989732508,-6856.78,0.00022465,4]
[330081668,1718989732552,-500.0,0.00022465,4]